[Event "Wuerttemberg Rapid Teams 2024"]
[Site "B?blingen, Germany"]
[Date "2024.04.13"]
[Round "7.18"]
[White "Huber, Philipp"]
[Black "Vaysberg, Alexander"]
[Result "0-1"]
[ECO "A45"]
[WhiteElo "2306"]
[BlackElo "2152"]
[Annotator "RC"]
[PlyCount "90"]
[EventDate "2024.04.13"]
[EventType "team-tourn"]
[SourceTitle "playchess.com"]
[Source "ChessBase"]
[SourceQuality "1"]
[TimeControl "900+5"]

1. d4 {[%emt 0:00:04]} Nf6 {[%emt 0:00:04]} 2. Bg5 {[%emt 0:00:01]} Ne4 {[%emt 0:00:04]} 3. h4 {[%emt 0:00:02]} d5 {[%emt 0:00:31]} 4. Nd2 {[%emt 0:00:02]} Nxd2 {[%emt 0:00:21]} 5. Qxd2 {[%emt 0:00:04]} h6 {[%emt 0:00:06]} 6. Bf4 {[%emt 0:00:01]} Bf5 {[%emt 0:00:05]} 7. f3 {[%emt 0:00:31]} e6 {[%emt 0:00:25]} 8. g4 {[%emt 0:00:03]} Bg6 {[%emt 0:00:19]} 9. e3 {[%emt 0:00:05]} Bd6 {[%emt 0:00:12]} 10. Bd3 {[%emt 0:00:25]} Bxd3 {[%emt 0:00:09]} 11. cxd3 {[%emt 0:00:04]} Bxf4 {[%emt 0:00:04]} 12. exf4 {[%emt 0:00:01]} Nc6 {[%emt 0:00:07]} 13. Ne2 {[%emt 0:00:04]} Qd6 {[%emt 0:00:03]} 14. h5 {[%emt 0:00:18]} Qb4 {[%emt 0:00:31]} 15. Qxb4 {[%emt 0:00:07]} Nxb4 {[%emt 0:00:02]} 16. Kd2 {[%emt 0:00:01]} c6 {[%emt 0:00:48]} 17. a3 {[%emt 0:00:28]} Na6 {[%emt 0:00:02]} 18. Nc3 {[%emt 0:00:24]} Nc7 {[%emt 0:00:11]} 19. Na4 {[%emt 0:00:03]} b6 {[%emt 0:00:08]} 20. Rac1 {[%emt 0:00:20]} Kd7 {[%emt 0:00:02]} 21. Rc2 {[%emt 0:00:12]} Rac8 {[%emt 0:00:03]} 22. Rhc1 {[%emt 0:00:05]} Nb5 {[%emt 0:00:02]} 23. Ke3 {[%emt 0:00:05]} Rc7 {[%emt 0:01:09]} 24. Nc3 {[%emt 0:00:14]} Nd6 {[%emt 0:00:03]} 25. Ne2 {[%emt 0:00:07]} Rhc8 {[%emt 0:00:26]} 26. b4 {[%emt 0:00:07]} Ra8 {[%emt 0:00:20]} 27. a4 {[%emt 0:00:13]} a5 {[%emt 0:00:48]} 28. b5 {[%emt 0:00:05]} Rac8 {[%emt 0:00:01]} 29. bxc6+ {[%emt 0:00:12]} Rxc6 {[%emt 0:00:02]} 30. Nc3 {[%emt 0:00:06]} b5 {[%emt 0:00:17]} 31. Kd2 {[%emt 0:00:26]} bxa4 {[%emt 0:03:18]} 32. f5 {[%emt 0:02:20]} a3 {[%emt 0:00:51]} 33. fxe6+ {[%emt 0:00:22]} fxe6 {[%emt 0:00:03]} 34. f4 {[%emt 0:00:20]} a2 {[%emt 0:01:29]} 35. Rxa2 {[%emt 0:00:35]} Nb5 {[%emt 0:00:07]} 36. Nxb5 {[%emt 0:00:03]} Rxc1 {[%emt 0:00:05]} 37. Rxa5 {[%emt 0:00:05]} Rg1 {[%emt 0:01:32]} 38. f5 {[%emt 0:00:48]} Rxg4 {[%emt 0:00:33]} 39. fxe6+ {[%emt 0:00:59]} Kxe6 {[%emt 0:00:07]} 40. Ra6+ {[%emt 0:00:04]} Ke7 {[%emt 0:00:09]} 41. Nd6 {[%emt 0:00:26]} Rf8 {[%emt 0:00:26]} 42. Ke3 {[%emt 0:00:17]} Rf6 {[%emt 0:00:12]} 43. Nc8+ {[%emt 0:00:03]} Kd8 {[%emt 0:00:03]} 44. Ra8 {[%emt 0:00:04]} Kc7 {[%emt 0:00:10]} 45. Kd2 {[%emt 0:00:05]} Rf8 {[%emt 0:00:13]} 0-1

[Event "Wuerttemberg Rapid Teams 2024"]
[Site "B?blingen, Germany"]
[Date "2024.04.13"]
[Round "7.19"]
[White "Jerie, Sven"]
[Black "Degenhard, Simon"]
[Result "0-1"]
[ECO "B21"]
[WhiteElo "2018"]
[BlackElo "2204"]
[Annotator "RC"]
[PlyCount "68"]
[EventDate "2024.04.13"]
[EventType "team-tourn"]
[SourceTitle "playchess.com"]
[Source "ChessBase"]
[SourceQuality "1"]
[TimeControl "900+5"]

1. e4 {[%emt 0:00:07]} c5 {[%emt 0:00:01]} 2. Be2 {[%emt 0:00:01]} Nc6 {[%emt 0:00:03]} 3. d3 {[%emt 0:00:01]} g6 {[%emt 0:00:40]} 4. f4 {[%emt 0:00:04]} Bg7 {[%emt 0:00:02]} 5. Nf3 {[%emt 0:00:02]} d6 {[%emt 0:00:02]} 6. c3 {[%emt 0:00:01]} e6 {[%emt 0:00:11]} 7. O-O {[%emt 0:00:02]} Nge7 {[%emt 0:00:02]} 8. Be3 {[%emt 0:00:02]} O-O {[%emt 0:00:08]} 9. d4 {[%emt 0:00:02]} cxd4 {[%emt 0:00:09]} 10. cxd4 {[%emt 0:00:03]} d5 {[%emt 0:00:09]} 11. e5 {[%emt 0:00:01]} Nf5 {[%emt 0:00:04]} 12. Bf2 {[%emt 0:00:01]} h5 {[%emt 0:00:02]} 13. Nc3 {[%emt 0:00:02]} Bd7 {[%emt 0:00:06]} 14. Rc1 {[%emt 0:00:07]} Rc8 {[%emt 0:00:05]} 15. h3 {[%emt 0:00:02]} h4 {[%emt 0:01:55]} 16. Bd3 {[%emt 0:00:38]} Ng3 {[%emt 0:01:02]} 17. Re1 {[%emt 0:01:14]} Bh6 {[%emt 0:00:15]} 18. Qd2 {[%emt 0:00:31]} Na5 {[%emt 0:01:13]} 19. b3 {[%emt 0:00:19]} Qb6 {[%emt 0:00:25]} 20. Nxh4 {[%emt 0:00:23]} Nh5 {[%emt 0:00:45]} 21. Be3 {[%emt 0:00:44]} Bxf4 {[%emt 0:00:51]} 22. g4 {[%emt 0:01:10]} Qxd4 {[%emt 0:01:35]} 23. Nf3 {[%emt 0:01:06]} Bxe3+ {[%emt 0:00:30]} 24. Rxe3 {[%emt 0:00:12]} Qb6 {[%emt 0:00:54]} 25. gxh5 {[%emt 0:01:32]} d4 {[%emt 0:00:03]} 26. Nxd4 {[%emt 0:01:41]} Qxd4 {[%emt 0:00:02]} 27. Ne2 {[%emt 0:01:04]} Rxc1+ {[%emt 0:00:55]} 28. Qxc1 {[%emt 0:00:04]} Qh4 {[%emt 0:00:12]} 29. Rg3 {[%emt 0:03:32]} Nc6 {[%emt 0:03:04]} 30. hxg6 {[%emt 0:00:28]} Nxe5 {[%emt 0:00:02]} 31. gxf7+ {[%emt 0:00:44]} Kxf7 {[%emt 0:00:01]} 32. Qc7 {[%emt 0:00:37]} Qf6 {[%emt 0:00:17]} 33. Re3 {[%emt 0:00:53]} Rg8+ {[%emt 0:00:31]} 34. Ng3 {[%emt 0:00:01]} Qf4 {[%emt 0:00:12]} 0-1

[Event "Wuerttemberg Rapid Teams 2024"]
[Site "B?blingen, Germany"]
[Date "2024.04.13"]
[Round "7.20"]
[White "Tschlatscher, Thomas"]
[Black "Schaffert, Walter"]
[Result "1-0"]
[ECO "A01"]
[WhiteElo "2217"]
[BlackElo "2033"]
[Annotator "RC"]
[PlyCount "31"]
[EventDate "2024.04.13"]
[EventType "team-tourn"]
[SourceTitle "playchess.com"]
[Source "ChessBase"]
[SourceQuality "1"]
[TimeControl "900+5"]

1. b3 {[%emt 0:00:02]} e5 {[%emt 0:00:09]} 2. Bb2 {[%emt 0:00:03]} Nc6 {[%emt 0:00:04]} 3. e3 {[%emt 0:00:02]} Nf6 {[%emt 0:00:20]} 4. Bb5 {[%emt 0:00:04]} d6 {[%emt 0:00:11]} 5. d4 {[%emt 0:00:03]} exd4 {[%emt 0:00:09]} 6. Qxd4 {[%emt 0:00:02]} Bd7 {[%emt 0:00:19]} 7. Bxc6 {[%emt 0:00:02]} Bxc6 {[%emt 0:00:03]} 8. Nf3 {[%emt 0:00:02]} Be7 {[%emt 0:02:10]} 9. Nc3 {[%emt 0:00:03]} O-O {[%emt 0:00:33]} 10. O-O-O {[%emt 0:00:03]} b5 {[%emt 0:00:56]} 11. e4 {[%emt 0:00:04]} Ne8 {[%emt 0:01:46]} 12. e5 {[%emt 0:02:14]} Bxf3 {[%emt 0:03:08]} 13. gxf3 {[%emt 0:00:06]} Bg5+ {[%emt 0:02:04]} 14. f4 {[%emt 0:00:34]} dxe5 {[%emt 0:00:07]} 15. Qxe5 {[%emt 0:00:08]} Qe7 {[%emt 0:00:09]} 16. Qxg5 {[%emt 0:00:32]} 1-0

[Event "Wuerttemberg Rapid Teams 2024"]
[Site "B?blingen, Germany"]
[Date "2024.04.13"]
[Round "7.21"]
[White "Seitz, Patrick"]
[Black "Gabriel, Robert"]
[Result "0-1"]
[ECO "B14"]
[WhiteElo "2125"]
[BlackElo "2161"]
[Annotator "RC"]
[PlyCount "118"]
[EventDate "2024.04.13"]
[EventType "team-tourn"]
[SourceTitle "playchess.com"]
[Source "ChessBase"]
[SourceQuality "1"]
[TimeControl "900+5"]

1. e4 {[%emt 0:00:02]} c6 {[%emt 0:00:03]} 2. d4 {[%emt 0:00:04]} d5 {[%emt 0:00:03]} 3. exd5 {[%emt 0:00:02]} cxd5 {[%emt 0:00:03]} 4. c4 {[%emt 0:00:03]} Nf6 {[%emt 0:00:05]} 5. Nc3 {[%emt 0:00:03]} e6 {[%emt 0:00:11]} 6. Nf3 {[%emt 0:00:03]} Bb4 {[%emt 0:00:12]} 7. cxd5 {[%emt 0:00:36]} Nxd5 {[%emt 0:00:06]} 8. Qc2 {[%emt 0:00:10]} Nc6 {[%emt 0:00:26]} 9. a3 {[%emt 0:00:33]} Ba5 {[%emt 0:00:35]} 10. Bd2 {[%emt 0:00:55]} O-O {[%emt 0:00:10]} 11. Bd3 {[%emt 0:00:10]} h6 {[%emt 0:00:14]} 12. O-O {[%emt 0:00:10]} Bb6 {[%emt 0:00:09]} 13. Rad1 {[%emt 0:01:49]} Bxd4 {[%emt 0:00:41]} 14. Nxd5 {[%emt 0:00:11]} exd5 {[%emt 0:00:20]} 15. Nxd4 {[%emt 0:01:49]} Nxd4 {[%emt 0:00:04]} 16. Qa4 {[%emt 0:00:02]} Nc6 {[%emt 0:00:43]} 17. Qf4 {[%emt 0:02:03]} Be6 {[%emt 0:00:34]} 18. b4 {[%emt 0:00:37]} a6 {[%emt 0:00:09]} 19. Bc3 {[%emt 0:00:36]} Qg5 {[%emt 0:00:19]} 20. Qxg5 {[%emt 0:01:41]} hxg5 {[%emt 0:00:03]} 21. Rfe1 {[%emt 0:00:01]} g4 {[%emt 0:00:35]} 22. f4 {[%emt 0:00:45]} gxf3 {[%emt 0:00:07]} 23. gxf3 {[%emt 0:00:01]} Rfe8 {[%emt 0:00:36]} 24. Kf2 {[%emt 0:00:16]} f6 {[%emt 0:00:27]} 25. Rg1 {[%emt 0:01:02]} Ne5 {[%emt 0:00:47]} 26. Be2 {[%emt 0:00:02]} Rac8 {[%emt 0:00:18]} 27. Rc1 {[%emt 0:00:12]} Bf5 {[%emt 0:01:38]} 28. Bd4 {[%emt 0:02:06]} Kf7 {[%emt 0:00:28]} 29. Rc5 {[%emt 0:00:31]} Rxc5 {[%emt 0:00:16]} 30. Bxc5 {[%emt 0:00:01]} Bd3 {[%emt 0:00:33]} 31. f4 {[%emt 0:00:52]} Bxe2 {[%emt 0:00:09]} 32. Kxe2 {[%emt 0:00:01]} Ng6+ {[%emt 0:00:32]} 33. Kf3 {[%emt 0:00:01]} Re4 {[%emt 0:00:12]} 34. Be3 {[%emt 0:00:10]} Nh4+ {[%emt 0:00:36]} 35. Kf2 {[%emt 0:00:00]} Nf5 {[%emt 0:00:09]} 36. Bd2 {[%emt 0:00:01]} d4 {[%emt 0:00:15]} 37. Rc1 {[%emt 0:00:02]} d3 {[%emt 0:00:32]} 38. Re1 {[%emt 0:00:26]} Rc4 {[%emt 0:00:18]} 39. Kf3 {[%emt 0:00:02]} Rc2 {[%emt 0:00:12]} 40. Rd1 {[%emt 0:00:01]} Ra2 {[%emt 0:01:51]} 41. Ke4 {[%emt 0:00:00]} Nd6+ {[%emt 0:00:03]} 42. Kxd3 {[%emt 0:00:01]} Rxa3+ {[%emt 0:00:03]} 43. Kd4 {[%emt 0:00:05]} Ke6 {[%emt 0:00:33]} 44. Re1+ {[%emt 0:00:01]} Kd7 {[%emt 0:00:06]} 45. Rd1 {[%emt 0:00:02]} b6 {[%emt 0:00:26]} 46. Be1 {[%emt 0:00:09]} Ke6 {[%emt 0:00:06]} 47. Bg3 {[%emt 0:00:00]} Nf5+ {[%emt 0:00:05]} 48. Kc4 {[%emt 0:00:11]} Nxg3 {[%emt 0:00:04]} 49. hxg3 {[%emt 0:00:01]} Rxg3 {[%emt 0:00:24]} 50. Rd8 {[%emt 0:00:01]} Rf3 {[%emt 0:00:09]} 51. Rb8 {[%emt 0:00:02]} Rxf4+ {[%emt 0:00:04]} 52. Kc3 {[%emt 0:00:00]} b5 {[%emt 0:00:10]} 53. Rb6+ {[%emt 0:00:01]} Kf7 {[%emt 0:00:12]} 54. Rxa6 {[%emt 0:00:01]} g5 {[%emt 0:00:03]} 55. Rb6 {[%emt 0:00:04]} Rf5 {[%emt 0:00:02]} 56. Kd4 {[%emt 0:00:01]} g4 {[%emt 0:00:09]} 57. Ke4 {[%emt 0:00:10]} Kg6 {[%emt 0:00:03]} 58. Rb8 {[%emt 0:00:03]} Rg5 {[%emt 0:00:19]} 59. Kf4 {[%emt 0:00:59]} g3 {[%emt 0:00:01]} 0-1

[Event "Wuerttemberg Rapid Teams 2024"]
[Site "B?blingen, Germany"]
[Date "2024.04.13"]
[Round "7.22"]
[White "Gabriel, Josef"]
[Black "Narr, Kevin"]
[Result "0-1"]
[ECO "C00"]
[WhiteElo "1997"]
[BlackElo "1977"]
[Annotator "TA"]
[PlyCount "64"]
[EventDate "2024.04.13"]
[EventType "team-tourn"]
[SourceTitle "playchess.com"]
[Source "ChessBase"]
[SourceQuality "1"]
[TimeControl "900+5"]

{[%evp 9,64,-12,-12,-20,1,0,1,0,0,-21,-12,-17,10,0,0,0,0,0,10,24,20,21,54,0,60,38,42,20,39,33,57,-61,-42,-148,-143,-133,-112,-191,-215,-222,-215,-250,-191,-587,-57,-74,-58,-68,0,0,13,-760,-745,-29975,-29977,-29959,-5767]} 1. e4 {[%emt 0:00:02]} e6 {[%emt 0:00:00]} 2. d3 {[%emt 0:00:03]} d5 {[%emt 0:00:01]} 3. Nd2 {[%emt 0:00:03]} Nf6 {[%emt 0:00:01]} 4. Ngf3 {[%emt 0:00:02]} Be7 {[%emt 0:00:01]} 5. g3 {[%emt 0:00:02]} O-O {[%emt 0:00:03]} 6. Bg2 {[%emt 0:00:01]} a5 {[%emt 0:00:00]} 7. O-O {[%emt 0:00:32]} a4 {[%emt 0:00:01]} 8. a3 {[%emt 0:00:01] The position is equal.} Nc6 {[%emt 0:00:23]} 9. e5 {[%emt 0:00:31]} Nd7 {[%emt 0:00:01]} 10. d4 {[%emt 0:00:01]} Nb6 {[%emt 0:00:24]} 11. Qe2 {[%emt 0:00:16]} f6 {[%emt 0:00:08]} 12. exf6 {[%emt 0:00:06]} Bxf6 {[%emt 0:00:26]} 13. c3 {[%emt 0:00:01]} Bd7 {[%emt 0:00:32]} 14. Re1 {[%emt 0:00:00]} Re8 {[%emt 0:01:41]} 15. Qd3 {[%emt 0:00:31]} Na5 {[%emt 0:00:36]} 16. Ne5 {[%emt 0:00:16]} (16. h4 $14) 16... Nbc4 {[%emt 0:01:14]} 17. Nexc4 {[%emt 0:00:07]} (17. Ndxc4 $5 Bb5 18. Qd1 Nxc4 19. Bf1 Bxe5 20. Bxc4 dxc4 (20... Bxc4 21. Rxe5 Ra6 22. Bf4 $11) 21. Rxe5 $11) 17... Bb5 {[%emt 0:00:32]} 18. Bh3 {[%emt 0:00:24]} dxc4 {[%emt 0:01:37]} 19. Qe2 {[%emt 0:01:21][%cal Od2e4]} (19. Bxe6+ Rxe6 20. Qf1 Rxe1 21. Qxe1 Qd5 $19) 19... e5 {[%emt 0:01:58]} 20. Qh5 {[%emt 0:01:21]} (20. dxe5 $14 Nb3 (20... Rxe5 21. Ne4 $16) 21. Rb1 (21. Nxb3 Rxe5 22. Be3 cxb3 $11)) 20... exd4 {[%emt 0:00:00]} 21. Be6+ {[%emt 0:00:07] [#]} (21. Ne4 $1 $15 Rxe4 (21... Bc6 22. Bf5 $11) 22. Rxe4) 21... Rxe6 $1 $17 {[%emt 0:00:00][%mdl 512]} 22. Rxe6 {[%emt 0:00:04]} Be8 {[%emt 0:02:03]} (22... dxc3 23. Qxb5 c6 (23... cxd2 $2 24. Bxd2 c6 25. Qb4 $18) 24. Qb4 $18 (24. Qxa4 $2 cxd2 25. Qd1 Qd5 $19)) 23. Qe2 {[%emt 0:02:06]} (23. Qf3 $17 {might work better.}) 23... Bf7 {[%emt 0:00:14]} ({Inferior is} 23... dxc3 24. Ne4 (24. Nxc4 $2 {loses.} Bb5 $19) 24... Bf7 25. Nxf6+ gxf6 26. Qg4+ Bg6 27. bxc3 $11) 24. Re4 {[%emt 0:00:18]} Bg6 {[%emt 0:00:32] ...Qd5 is the strong threat.} 25. Rg4 {[%emt 0:02:53]} dxc3 {[%emt 0:00:39]} 26. Nxc4 {[%emt 0:00:55] [#]} (26. bxc3 {is tougher.} Bxc3 27. Ra2) 26... Nxc4 $2 {[%emt 0:00:29]} ({Better is} 26... Nb3 $19 27. Rxg6 hxg6 (27... Nxa1 $2 28. Rxf6 Qxf6 29. bxc3 $19) 28. Qe6+ Kf8 29. bxc3 Nxa1) 27. Qxc4+ $15 {[%emt 0:01:02]} Bf7 {[%emt 0:00:01] A strong pair of Bishops.} (27... Kh8 {simplifies} 28. Rxg6 Qd1+ 29. Qf1 Qxf1+ 30. Kxf1 hxg6 31. bxc3 Bxc3 32. Rb1 b6) 28. Qe2 {[%emt 0:00:02]} Qd7 {[%emt 0:00:43]} ({Black should play} 28... Bh5 $15 29. bxc3 Bxc3 (29... Bxg4 30. Qxg4 Qd3 31. Bg5 $15)) 29. bxc3 $11 {[%emt 0:00:59]} Re8 {[%emt 0:00:13]} 30. Re4 {[%emt 0:00:04][%mdl 8192]} (30. Be3 $11) 30... Rxe4 $19 {[%emt 0:00:03]} 31. Qxe4 {[%emt 0:00:02]} Qd1+ {[%emt 0:00:00]} 32. Kg2 {[%emt 0:00:35]} Bd5 {[%emt 0:00:01] Weighted Error Value: White=0.92/Black=0.40.  Loses game:     	White=1     	---        Missed win:     	---       	Black=1      Mistake:       	White=5     	Black=2      Inaccurate:     	White=1     	Black=2      OK:         	White=6     	Black=8      Best:        	White=1     	Black=1      Brilliant:      	---       	Black=1} 0-1

[Event "Wuerttemberg Rapid Teams 2024"]
[Site "B?blingen, Germany"]
[Date "2024.04.13"]
[Round "7.23"]
[White "Sulzbacher, Kurt"]
[Black "Aksenov, Pavel"]
[Result "1-0"]
[ECO "C18"]
[WhiteElo "1976"]
[BlackElo "2045"]
[Annotator "RC"]
[PlyCount "77"]
[EventDate "2024.04.13"]
[EventType "team-tourn"]
[SourceTitle "playchess.com"]
[Source "ChessBase"]
[SourceQuality "1"]
[TimeControl "900+5"]

1. e4 {[%emt 0:00:03]} e6 {[%emt 0:00:00]} 2. d4 {[%emt 0:00:02]} d5 {[%emt 0:00:01]} 3. Nc3 {[%emt 0:00:01]} Bb4 {[%emt 0:00:01]} 4. e5 {[%emt 0:00:02]} c5 {[%emt 0:00:01]} 5. a3 {[%emt 0:00:01]} cxd4 {[%emt 0:00:01]} 6. axb4 {[%emt 0:00:59]} dxc3 {[%emt 0:00:01]} 7. bxc3 {[%emt 0:00:27]} Qc7 {[%emt 0:00:03]} 8. Nf3 {[%emt 0:00:03]} Nd7 {[%emt 0:00:14]} 9. Qd4 {[%emt 0:00:18]} Ne7 {[%emt 0:00:13]} 10. Bd2 {[%emt 0:00:58]} Nc6 {[%emt 0:00:28]} 11. Qg4 {[%emt 0:00:01]} Ncxe5 {[%emt 0:00:19]} 12. Nxe5 {[%emt 0:00:12]} Qxe5+ {[%emt 0:00:08]} 13. Be2 {[%emt 0:00:02]} f5 {[%emt 0:00:33]} 14. Qh5+ {[%emt 0:00:16]} g6 {[%emt 0:00:05]} 15. Qh4 {[%emt 0:00:11]} O-O {[%emt 0:00:10]} 16. f4 {[%emt 0:01:16]} Qf6 {[%emt 0:01:53]} 17. Qg3 {[%emt 0:00:05]} e5 {[%emt 0:00:21]} 18. O-O {[%emt 0:00:29]} e4 {[%emt 0:00:04]} 19. c4 {[%emt 0:01:12]} d4 {[%emt 0:00:23]} 20. c5 {[%emt 0:00:16]} Nb8 {[%emt 0:00:32]} 21. b5 {[%emt 0:01:17]} Be6 {[%emt 0:00:06]} 22. Bb4 {[%emt 0:00:23]} Rc8 {[%emt 0:01:20]} 23. c6 {[%emt 0:00:02]} bxc6 {[%emt 0:00:10]} 24. b6 {[%emt 0:00:01]} Qf7 {[%emt 0:00:43]} 25. Rfb1 {[%emt 0:00:03]} Qb7 {[%emt 0:01:29]} 26. Bc5 {[%emt 0:02:18]} axb6 {[%emt 0:00:05]} 27. Rxa8 {[%emt 0:00:01]} Qxa8 {[%emt 0:00:01]} 28. Bxd4 {[%emt 0:00:04]} b5 {[%emt 0:02:02]} 29. Ra1 {[%emt 0:00:47]} Ba2 {[%emt 0:02:33]} 30. Qg5 {[%emt 0:00:01]} c5 {[%emt 0:00:04]} 31. Bb2 {[%emt 0:00:43]} Qd5 {[%emt 0:00:58]} 32. Qf6 {[%emt 0:00:20]} Rc7 {[%emt 0:02:18]} 33. Qh8+ {[%emt 0:00:14]} Kf7 {[%emt 0:00:01]} 34. Qxh7+ {[%emt 0:00:02]} Ke6 {[%emt 0:00:01]} 35. Qxc7 {[%emt 0:00:46]} Nc6 {[%emt 0:00:25]} 36. Rd1 {[%emt 0:00:06]} Nd4 {[%emt 0:00:03]} 37. Bxd4 {[%emt 0:00:28]} cxd4 {[%emt 0:00:01]} 38. Qb6+ {[%emt 0:00:23]} Ke7 {[%emt 0:00:11]} 39. Rxd4 {[%emt 0:00:19]} 1-0

[Event "Wuerttemberg Rapid Teams 2024"]
[Site "B?blingen, Germany"]
[Date "2024.04.13"]
[Round "7.24"]
[White "Siegle, Florian"]
[Black "Kaufmann, Gunther"]
[Result "1-0"]
[ECO "B40"]
[WhiteElo "1912"]
[BlackElo "1852"]
[Annotator "TA"]
[PlyCount "61"]
[EventDate "2024.04.13"]
[EventType "team-tourn"]
[SourceTitle "playchess.com"]
[Source "ChessBase"]
[SourceQuality "1"]
[TimeControl "900+5"]

{[%evp 9,61,-5,41,-9,2,4,-14,-29,98,-14,108,10,47,0,22,-8,0,-17,50,27,46,38,75,60,72,75,150,165,190,189,219,210,250,260,261,225,297,285,599,291,662,666,662,650,617,511,576,559,1097,1070,1330,1336,29995,29996]} 1. e4 {[%emt 0:00:03]} c5 {[%emt 0:00:02]} 2. Nf3 {[%emt 0:00:04]} e6 {[%emt 0:00:05]} 3. Nc3 {[%emt 0:00:30]} a6 {[%emt 0:00:37]} 4. a4 {[%emt 0:00:38]} Nc6 {[%emt 0:00:09]} 5. Be2 {[%emt 0:00:21]} g6 {[%emt 0:00:11]} (5... Nf6 $11) 6. d3 {[%emt 0:00:07]} (6. d4 $14) 6... Bg7 $11 {[%emt 0:00:02]} 7. Be3 {[%emt 0:00:04]} d6 {[%emt 0:00:10]} 8. Qc1 {[%emt 0:00:20] The position is equal.} Nb4 {[%emt 0:00:31]} (8... Nge7 $11) 9. Bd1 {[%emt 0:00:09]} (9. e5 $1 $16) 9... Rb8 {[%emt 0:02:35]} (9... e5 $11 {remains equal.}) 10. O-O {[%emt 0:00:04]} (10. e5 $1 $16) 10... Qc7 {[%emt 0:01:06]} 11. h3 {[%emt 0:01:27]} (11. Qd2 $14 {was preferrable.}) 11... Nf6 {[%emt 0:00:41][%cal Bg8f6,Bf6e8,Be8d6,Bd6e4][%mdl 32]} 12. Bh6 {[%emt 0:00:05]} O-O {[%emt 0:00:02]} 13. Bf4 {[%emt 0:01:04]} b5 {[%emt 0:00:43]} ({Black should try} 13... e5 $11 14. Bg5 Be6) 14. axb5 {[%emt 0:00:15]} axb5 {[%emt 0:00:02]} 15. e5 $1 {[%emt 0:00:05]} Ne8 {[%emt 0:00:31]} 16. exd6 {[%emt 0:00:08]} Nxd6 {[%emt 0:00:03]} 17. Ne4 $1 {[%emt 0:00:12]} e5 {[%emt 0:01:13]} 18. Nxe5 $16 {[%emt 0:00:27]} Nd5 {[%emt 0:00:58] [#] Strongly threatening ...Nxf4.} 19. Bh2 {[%emt 0:01:19][%cal Oe5g6] aiming for Nxg6!} Nxe4 {[%emt 0:01:58] [#]} 20. Nxg6 {[%emt 0:00:16]} ({Weaker is} 20. dxe4 Bxe5 21. Bxe5 Qxe5 $11) 20... Nd6 {[%emt 0:00:02]} 21. Nxf8 {[%emt 0:00:30]} Kxf8 {[%emt 0:00:02]} 22. Qg5 {[%emt 0:00:40]} Bb7 {[%emt 0:00:25][%cal Ob8d8]} 23. Bf3 {[%emt 0:00:53]} Ne7 {[%emt 0:02:15]} (23... h6 24. Qh4 Qb6) 24. Ra7 {[%emt 0:00:31]} (24. Bxb7 $142 Kg8 25. Rfe1) 24... Nec8 $2 {[%emt 0:00:12] [#]} (24... h6 25. Qh5 Nec8) 25. Rxb7 $1 $18 {[%emt 0:01:29][%mdl 512]} Rxb7 {[%emt 0:00:07]} 26. Bxb7 {[%emt 0:00:04]} Qxb7 {[%emt 0:00:03]} 27. Qd8+ {[%emt 0:00:02]} Ne8 {[%emt 0:00:08]} 28. Re1 {[%emt 0:00:03]} Qc6 {[%emt 0:00:25] [#]} 29. Bc7 $1 {[%emt 0:00:28][%mdl 512]} Bf6 {[%emt 0:00:39]} (29... f6 30. Qxc8) 30. Qxc8 {[%emt 0:00:06]} Qxc7 {[%emt 0:00:05]} 31. Rxe8+ {[%emt 0:00:05] Weighted Error Value: White=0.43/Black=1.15.  Mistake:       	White=4     	Black=6      Inaccurate:     	White=1     	Black=4      OK:         	White=5     	Black=3      Best:        	White=1     	---        Strong:       	White=2     	---        Brilliant:      	White=2     	---} 1-0

[Event "Wuerttemberg Rapid Teams 2024"]
[Site "B?blingen, Germany"]
[Date "2024.04.13"]
[Round "7.25"]
[White "Kottke, Markus"]
[Black "Li, Yunqi"]
[Result "0-1"]
[ECO "E94"]
[WhiteElo "2218"]
[BlackElo "1940"]
[Annotator "RC"]
[PlyCount "86"]
[EventDate "2024.04.13"]
[EventType "team-tourn"]
[SourceTitle "playchess.com"]
[Source "ChessBase"]
[SourceQuality "1"]
[TimeControl "900+5"]

1. d4 {[%emt 0:00:02]} Nf6 {[%emt 0:00:02]} 2. Nf3 {[%emt 0:00:02]} g6 {[%emt 0:00:02]} 3. c4 {[%emt 0:00:15]} Bg7 {[%emt 0:00:02]} 4. Nc3 {[%emt 0:00:03]} d6 {[%emt 0:00:01]} 5. e4 {[%emt 0:00:02]} O-O {[%emt 0:00:02]} 6. Be2 {[%emt 0:00:01]} Nbd7 {[%emt 0:00:02]} 7. O-O {[%emt 0:00:02]} e5 {[%emt 0:00:08]} 8. d5 {[%emt 0:00:06]} Nc5 {[%emt 0:00:09]} 9. Qc2 {[%emt 0:00:06]} a5 {[%emt 0:00:03]} 10. Be3 {[%emt 0:00:03]} b6 {[%emt 0:00:05]} 11. a3 {[%emt 0:00:10]} Ng4 {[%emt 0:00:33]} 12. Bg5 {[%emt 0:00:32]} f6 {[%emt 0:00:02]} 13. Bd2 {[%emt 0:00:02]} a4 {[%emt 0:00:02]} 14. h3 {[%emt 0:00:21]} Nh6 {[%emt 0:00:01]} 15. Be3 {[%emt 0:00:02]} Nb3 {[%emt 0:00:10]} 16. Rad1 {[%emt 0:00:05]} Bd7 {[%emt 0:00:04]} 17. Nd2 {[%emt 0:00:41]} Nc5 {[%emt 0:00:09]} 18. Nb5 {[%emt 0:00:44]} f5 {[%emt 0:00:40]} 19. f3 {[%emt 0:00:02]} Nf7 {[%emt 0:00:19]} 20. b4 {[%emt 0:00:07]} axb3 {[%emt 0:00:04]} 21. Nxb3 {[%emt 0:00:03]} f4 {[%emt 0:00:33]} 22. Bf2 {[%emt 0:00:30]} Ng5 {[%emt 0:00:26]} 23. Nxc5 {[%emt 0:01:47]} bxc5 {[%emt 0:00:03]} 24. Kh1 {[%emt 0:00:21]} Bxb5 {[%emt 0:00:44]} 25. cxb5 {[%emt 0:00:06]} Rxa3 {[%emt 0:00:01]} 26. Qb2 {[%emt 0:00:05]} Ra4 {[%emt 0:00:13]} 27. Ra1 {[%emt 0:00:28]} Ra8 {[%emt 0:00:17]} 28. Ra6 {[%emt 0:01:50]} Rb8 {[%emt 0:00:19]} 29. Qa2 {[%emt 0:00:27]} Bf6 {[%emt 0:00:12]} 30. Ra1 {[%emt 0:00:35]} Qd7 {[%emt 0:00:02]} 31. Kh2 {[%emt 0:00:59]} h6 {[%emt 0:00:03]} 32. Ra7 {[%emt 0:00:09]} Qc8 {[%emt 0:01:11]} 33. Qa5 {[%emt 0:03:01]} Bd8 {[%emt 0:00:04]} 34. Qa4 {[%emt 0:00:03]} Nh7 {[%emt 0:00:11]} 35. Bc4 {[%emt 0:00:41]} Nf6 {[%emt 0:00:08]} 36. Be1 {[%emt 0:00:30]} g5 {[%emt 0:00:14]} 37. Be2 {[%emt 0:00:13]} h5 {[%emt 0:00:03]} 38. Qa6 {[%emt 0:00:14]} Qd7 {[%emt 0:00:52]} 39. Ba5 {[%emt 0:01:08]} Qc8 {[%emt 0:00:58]} 40. Ra3 {[%emt 0:00:46]} g4 {[%emt 0:00:28]} 41. Qxc8 {[%emt 0:00:25]} Rxc8 {[%emt 0:00:07]} 42. hxg4 {[%emt 0:00:17]} hxg4 {[%emt 0:00:01]} 43. Rb7 {[%emt 0:00:22]} Rf7 {[%emt 0:00:12]} 0-1